bitfinex/quotes_SOLUSD_20241107
["timestamp","ask_amount","ask_price","bid_price","bid_amount"]
[1731007567835,15.66684473,195.37,195.32,0.1]
[1731007568240,15.66684473,195.34,195.28,15.86684473]
[1731007568446,15.66684473,195.34,195.29,0.1]
[1731007568647,15.66684473,195.35,195.3,0.1]
[1731007568842,15.66684473,195.35,195.29,15.76684473]
[1731007569040,15.66684473,195.4,195.21,6.26646678]
[1731007569041,15.66684473,195.33,195.27,0.1]
[1731007569251,15.66684473,195.33,195.28,0.1]
[1731007569448,15.66684473,195.34,195.3,0.1]
[1731007569646,15.66684473,195.33,195.28,0.1]
[1731007570065,15.66684473,195.35,195.29,0.1]
[1731007570270,15.66684473,195.35,195.32,0.1]
[1731007570766,15.66684473,195.37,195.32,0.1]
[1731007570974,15.66684473,195.37,195.33,0.1]
[1731007571143,15.66684473,195.38,195.34,0.1]
[1731007571347,15.66684473,195.37,195.34,0.1]
[1731007571669,15.66684473,195.36,195.33,0.1]
[1731007571966,15.66684473,195.36,195.32,0.1]
[1731007572164,15.66684473,195.37,195.34,0.1]
[1731007572468,15.66684473,195.37,195.32,0.1]
[1731007572662,15.66684473,195.33,195.28,0.1]
[1731007573365,15.66684473,195.33,195.27,0.1]
[1731007573666,15.66684473,195.34,195.28,0.2]
[1731007573860,15.66684473,195.34,195.3,0.1]
[1731007574074,15.66684473,195.34,195.28,0.1]
[1731007574248,15.66684473,195.34,195.28,0.2]
[1731007574450,15.66684473,195.34,195.3,0.1]
[1731007574746,17.03418829,195.4,195.3,0.1]
[1731007574747,15.66684473,195.35,195.3,0.1]
[1731007575148,15.66684473,195.34,195.3,0.1]
[1731007575345,15.66684473,195.34,195.29,0.1]
[1731007575547,15.66684473,195.36,195.31,0.1]
[1731007575871,15.66684473,195.35,195.32,0.1]
[1731007576049,15.66684473,195.35,195.31,0.1]
[1731007576646,15.66684473,195.34,195.31,0.1]
[1731007576842,15.66684473,195.34,195.27,15.66684473]
[1731007576843,15.66684473,195.32,195.25,0.1]
[1731007577074,15.66684473,195.28,195.24,0.1]
[1731007577364,15.66684473,195.31,195.28,0.1]
[1731007577565,15.66684473,195.33,195.28,0.1]
[1731007577749,15.66684473,195.32,195.28,0.1]
[1731007577952,15.66684473,195.33,195.26,15.86684473]
[1731007578159,15.66684473,195.33,195.29,0.1]
[1731007578546,15.66684473,195.33,195.3,0.1]
[1731007578756,15.66684473,195.34,195.3,0.1]
[1731007578953,15.66684473,195.31,195.27,0.1]
[1731007579465,15.66684473,195.34,195.3,0.1]
[1731007579774,15.66684473,195.33,195.3,0.1]
[1731007579952,15.66684473,195.34,195.3,0.1]
[1731007580155,15.66684473,195.33,195.3,0.1]
[1731007580649,15.66684473,195.34,195.3,0.1]
[1731007580983,15.66684473,195.33,195.3,0.1]
[1731007581369,15.66684473,195.35,195.3,0.1]
[1731007581553,15.66684473,195.33,195.3,0.1]
[1731007581949,15.66684473,195.31,195.3,0.1]
[1731007582257,15.66684473,195.33,195.3,0.1]
[1731007582454,15.66684473,195.32,195.28,0.1]
[1731007582859,15.66684473,195.32,195.3,0.1]
[1731007583171,15.66684473,195.31,195.3,0.1]
[1731007583466,15.66684473,195.34,195.3,0.1]
[1731007583769,15.66684473,195.31,195.26,23.776884]
[1731007583967,15.66684473,195.31,195.3,0.1]
[1731007584360,15.66684473,195.33,195.3,0.1]
[1731007584954,15.66684473,195.32,195.3,0.1]
[1731007585468,5.31681694,195.36,195.27,0.1]
[1731007585469,15.66684473,195.31,195.27,0.1]
[1731007585872,15.66684473,195.34,195.29,0.1]
[1731007586056,15.66684473,195.35,195.29,0.1]
[1731007586262,15.66684473,195.35,195.3,0.1]
[1731007586657,15.66684473,195.34,195.3,0.1]
[1731007587169,15.66684473,195.35,195.3,0.1]
[1731007587383,15.66684473,195.34,195.29,0.1]
[1731007587567,15.66684473,195.31,195.29,0.1]
[1731007587780,5.31681694,195.36,195.27,0.1]
[1731007587781,15.66684473,195.33,195.28,0.1]
[1731007587975,15.66684473,195.33,195.28,0.2]
[1731007588276,15.66684473,195.33,195.26,15.66684473]
[1731007588277,15.66684473,195.31,195.27,0.1]
[1731007588573,5.31681694,195.36,195.27,0.1]
[1731007588574,15.66684473,195.33,195.28,0.1]
[1731007588879,15.66684473,195.33,195.29,0.1]
[1731007589077,15.66684473,195.33,195.28,0.1]
[1731007589270,15.66684473,195.34,195.28,0.1]
[1731007589575,15.66684473,195.33,195.28,0.1]
[1731007589956,15.66684473,195.34,195.28,0.1]
[1731007590165,3.78550827,195.33,195.3,0.1]
[1731007590484,15.66684473,195.34,195.3,0.1]
[1731007590653,15.66684473,195.34,195.29,0.1]
[1731007590855,19.45178063,195.33,195.28,0.1]
[1731007591051,15.66684473,195.33,195.29,0.1]
[1731007591471,15.66684473,195.33,195.29,0.2]
[1731007591675,15.66684473,195.32,195.28,0.1]
[1731007592067,15.66684473,195.32,195.29,0.1]
[1731007592263,15.66684473,195.32,195.28,0.1]
[1731007592783,15.66684473,195.32,195.29,0.1]
[1731007593669,15.66684473,195.32,195.27,23.976884]
[1731007593859,15.66684473,195.32,195.29,0.1]
[1731007594369,15.66684473,195.33,195.29,0.1]
[1731007594675,3.78505722,195.32,195.29,0.2]
[1731007594855,15.66684473,195.33,195.29,0.2]
[1731007595060,3.78453729,195.32,195.3,0.1]
[1731007595260,5.31681694,195.36,195.31,0.1]
[1731007595481,5.31681694,195.36,195.34,0.1]
[1731007595482,9.84254666,195.35,195.34,0.1]
[1731007595681,3.78559487,195.35,195.34,0.1]
[1731007595878,3.78559487,195.35,195.34,0.2]
[1731007596092,3.78559487,195.35,195.34,15.86684473]
[1731007596378,7.67238661,195.43,195.38,0.1]
[1731007596379,15.66684473,195.41,195.38,0.1]
[1731007596567,9.84803306,195.4,195.38,0.1]
[1731007596878,9.85037675,195.39,195.38,0.1]
[1731007597078,3.78770502,195.39,195.37,0.1]
[1731007597380,15.66684473,195.41,195.39,0.1]
[1731007597581,9.85192216,195.4,195.39,0.1]
[1731007597767,3.78920083,195.4,195.39,0.1]
[1731007597963,3.78920083,195.4,195.37,0.1]
[1731007598275,3.78920083,195.39,195.37,0.1]
[1731007598469,3.78920083,195.38,195.37,0.1]
[1731007598671,15.66684473,195.42,195.38,0.1]
[1731007598883,25.51870979,195.41,195.37,0.2]
[1731007599069,19.4560236,195.4,195.37,0.1]
[1731007599268,3.78917887,195.39,195.37,0.1]
[1731007599469,3.78917887,195.38,195.37,0.1]
[1731007599870,3.78917887,195.38,195.37,0.2]
[1731007600379,3.78917887,195.38,195.37,0.1]
[1731007600764,3.78917887,195.38,195.37,0.2]
[1731007601088,15.66684473,195.41,195.37,0.2]
[1731007601264,3.78853824,195.4,195.37,0.2]
[1731007601570,3.78853824,195.39,195.37,0.1]
[1731007601782,3.78853824,195.38,195.37,0.1]
[1731007602983,3.78765484,195.38,195.37,0.1]
[1731007603584,3.78765484,195.38,195.37,0.2]
[1731007603766,15.66684473,195.41,195.39,0.1]
[1731007603961,3.78843559,195.4,195.37,0.2]
[1731007604178,3.78843559,195.39,195.37,0.2]
[1731007604378,15.66684473,195.42,195.38,0.2]
[1731007604580,9.84917084,195.41,195.38,0.1]
[1731007604783,3.78814263,195.4,195.38,0.1]
[1731007604981,3.78814263,195.39,195.38,0.1]
[1731007605684,3.78814263,195.39,195.38,0.2]
[1731007605989,15.66684473,195.44,195.39,0.1]
[1731007606288,15.66684473,195.43,195.39,0.1]
[1731007606589,3.7883057,195.42,195.41,0.1]
[1731007607277,3.7883057,195.42,195.4,0.1]
[1731007607468,3.7883057,195.41,195.4,0.1]
[1731007607870,3.7883057,195.41,195.4,0.2]
[1731007608985,3.7883057,195.41,195.4,0.1]
[1731007609501,21.72828862,195.43,195.4,0.2]
[1731007609681,3.78529974,195.42,195.4,0.2]
[1731007609898,6.06144389,195.43,195.4,0.2]
[1731007610077,3.78499562,195.42,195.4,0.2]
[1731007610273,21.72828862,195.43,195.4,0.1]
[1731007610483,3.78456639,195.42,195.4,0.2]
[1731007610792,6.06144389,195.43,195.4,0.2]
[1731007610992,3.78520506,195.42,195.41,0.2]
[1731007611171,15.66684473,195.48,195.46,0.1]
[1731007611366,9.84245506,195.47,195.46,0.1]
[1731007612077,9.84245506,195.47,195.46,15.86684473]
[1731007612275,3.78555964,195.47,195.46,39.64372873]
[1731007612488,15.66684473,195.53,195.46,39.64372873]
[1731007612798,9.83360437,195.52,195.5,0.1]
[1731007612980,9.83360437,195.51,195.5,0.2]
[1731007613380,9.83360437,195.51,195.5,0.1]
[1731007613586,9.83360437,195.51,195.47,15.76684473]
[1731007613587,3.78215553,195.51,195.49,0.2]
[1731007613784,15.66684473,195.54,195.5,0.1]
[1731007614098,9.818614,195.53,195.5,0.1]
[1731007614291,3.77639,195.52,195.49,0.2]
[1731007614595,3.77639,195.51,195.5,0.1]
[1731007614787,3.77639,195.51,195.5,0.2]
[1731007615587,5.31580453,195.57,195.5,0.2]
[1731007615588,15.66684473,195.57,195.52,0.1]
[1731007615894,15.66684473,195.55,195.52,0.2]
[1731007616077,9.81146454,195.54,195.52,0.2]
[1731007616404,3.77364021,195.53,195.52,0.2]
[1731007617297,3.77202223,195.53,195.52,0.2]
[1731007617495,15.66684473,195.55,195.52,0.2]
[1731007617704,3.77013704,195.54,195.52,0.2]
[1731007617908,15.66684473,195.56,195.54,0.1]
[1731007618213,3.77019344,195.55,195.54,0.1]
[1731007618789,3.77019344,195.55,195.52,0.2]
[1731007618978,15.66684473,195.57,195.52,0.2]
[1731007619179,3.76823401,195.56,195.55,0.1]
[1731007619375,15.66684473,195.57,195.55,0.1]
[1731007619797,15.66684473,195.58,195.55,0.2]
[1731007619983,15.66684473,195.58,195.55,0.1]
[1731007620184,15.66684473,195.58,195.57,0.1]
[1731007620384,19.43385446,195.58,195.57,0.1]
[1731007620585,3.76700973,195.58,195.57,0.1]
[1731007620989,3.76700973,195.58,195.56,0.2]
[1731007621189,15.66684473,195.59,195.56,0.2]
[1731007621396,15.66684473,195.59,195.58,0.1]
[1731007621594,19.43146369,195.59,195.58,0.1]
[1731007622320,15.66684473,195.59,195.58,0.1]
[1731007622492,15.66684473,195.59,195.56,0.2]
[1731007622800,5.31702866,195.64,195.52,35.66684473]
[1731007622801,15.66684473,195.57,195.54,0.1]
[1731007623004,15.66684473,195.57,195.56,0.1]
[1731007623322,15.66684473,195.57,195.54,0.2]
[1731007623684,15.66684473,195.56,195.54,0.1]
[1731007623995,15.66684473,195.55,195.53,0.1]
[1731007624299,15.66684473,195.57,195.56,0.1]
[1731007624604,15.66684473,195.59,195.57,0.1]
[1731007624777,15.66684473,195.58,195.57,0.1]
[1731007625619,15.66684473,195.59,195.57,0.1]
[1731007625912,15.66684473,195.59,195.58,0.1]
[1731007626405,15.66684473,195.6,195.59,0.1]
[1731007628904,15.66684473,195.6,195.58,0.1]
[1731007629205,15.66684473,195.59,195.58,0.2]
[1731007629404,10.02602739,195.59,195.58,0.1]
[1731007630114,10.02602739,195.59,195.58,0.2]
[1731007630686,4.61807033,195.59,195.58,0.2]
[1731007631185,1.3167065,195.66,195.61,0.1]
[1731007631391,1.3167065,195.66,195.58,0.1]
[1731007631392,10.02602739,195.62,195.6,0.1]
[1731007631586,5.31657742,195.67,195.58,0.1]
[1731007631587,10.02602739,195.61,195.58,0.1]
[1731007631809,10.02602739,195.59,195.58,0.2]
[1731007632790,10.02602739,195.59,195.52,0.1]
[1731007633005,10.02602739,195.59,195.51,0.1]
[1731007633006,10.02602739,195.53,195.51,0.1]
[1731007633204,40.10410956,195.6,195.5,0.1]
[1731007633205,10.02602739,195.52,195.5,0.1]
[1731007633411,10.02602739,195.51,195.45,0.1]
[1731007633587,10.02602739,195.47,195.46,0.2]
[1731007633894,10.02602739,195.48,195.47,0.1]
[1731007634099,10.02602739,195.49,195.47,0.2]
[1731007634301,10.02602739,195.48,195.45,0.2]
[1731007634623,10.02602739,195.48,195.47,0.1]
[1731007635115,10.02602739,195.48,195.45,0.2]
[1731007635300,10.02602739,195.48,195.47,0.1]
[1731007635503,23.776884,195.59,195.47,0.1]
[1731007635504,10.02602739,195.49,195.47,0.1]
[1731007635896,10.02602739,195.48,195.47,0.1]
[1731007636304,10.02602739,195.49,195.48,0.1]
[1731007636798,10.02602739,195.49,195.45,0.2]
[1731007636996,5.31894471,195.57,195.45,0.1]
[1731007636997,10.02602739,195.47,195.45,0.1]
[1731007637228,10.02602739,195.46,195.41,0.2]
[1731007637516,15.6907823,195.46,195.41,0.1]
[1731007638212,15.6907823,195.44,195.42,0.1]
[1731007638418,15.6907823,195.5,195.41,0.1]
[1731007638419,15.6907823,195.43,195.41,0.1]
[1731007638824,15.6907823,195.43,195.42,0.1]
[1731007639529,15.6907823,195.45,195.44,0.1]
[1731007639698,5.31894471,195.57,195.34,7.62806317]
[1731007639699,15.6907823,195.46,195.45,0.1]
[1731007639898,15.6907823,195.47,195.45,0.2]
[1731007640202,5.31894471,195.57,195.47,0.1]
[1731007640421,9.80264546,195.56,195.47,0.1]
[1731007640629,9.80264546,195.55,195.47,0.1]
[1731007640923,15.6907823,195.48,195.47,0.1]
[1731007641421,6.26965974,195.56,195.47,0.1]
[1731007641599,20.34135672,195.67,195.54,20.0]
[1731007641600,9.80814308,195.55,195.54,20.0]
[1731007641806,9.80814308,195.55,195.54,0.1]
[1731007641807,3.77236272,195.55,195.54,0.1]
[1731007642020,15.6907823,195.58,195.56,0.1]
[1731007642229,15.6907823,195.7,195.57,0.1]
[1731007642230,15.6907823,195.59,195.57,0.1]
[1731007642399,3.77404514,195.58,195.56,0.1]
[1731007642602,15.6907823,195.61,195.59,0.1]
[1731007642814,5.31711414,195.65,195.59,0.1]
[1731007642815,19.46550826,195.6,195.59,0.1]
[1731007643008,3.77472596,195.6,195.59,0.1]
[1731007643311,3.77472596,195.6,195.59,0.2]
[1731007643726,5.31711414,195.65,195.64,0.1]
[1731007644018,9.8187634,195.65,195.64,0.1]
[1731007644219,9.8187634,195.65,195.64,0.2]
[1731007644809,9.8187634,195.65,195.64,0.1]
[1731007645207,9.8187634,195.65,195.63,0.1]
[1731007645428,15.6907823,195.66,195.63,0.1]
[1731007645718,25.51059287,195.65,195.63,0.1]
[1731007645926,15.6907823,195.65,195.64,0.1]
[1731007646108,9.81783194,195.65,195.64,0.1]
[1731007646316,9.81783194,195.65,195.64,0.2]
[1731007646717,9.81783194,195.65,195.64,59.6676663]
[1731007646941,20.34912901,195.89,195.64,59.6676663]
[1731007646942,15.6907823,195.76,195.71,0.1]
[1731007647233,10.39236105,195.72,195.71,15.8907823]
[1731007647529,0.5702591,195.72,195.71,59.6676663]
[1731007647905,0.5702591,195.72,195.71,73.60707312]
[1731007648230,0.5702591,195.72,195.71,73.73256312]
[1731007648411,0.5702591,195.72,195.71,74.9252862]
[1731007648729,0.5702591,195.72,195.71,88.86469302]
[1731007649421,15.6907823,195.86,195.84,0.2]
[1731007649625,15.6907823,195.86,195.84,0.1]
[1731007649626,3.76637578,195.85,195.84,0.1]
[1731007649834,19.45715808,195.85,195.84,0.1]
[1731007650330,19.45276318,195.85,195.84,0.1]
[1731007650535,19.45276318,195.85,195.83,0.1]
[1731007650827,15.6907823,195.85,195.83,0.1]
[1731007651630,0.12549,195.91,195.83,0.1]
[1731007651818,1.88186515,195.92,195.89,0.1]
[1731007651819,6.01222944,195.9,195.89,0.1]
[1731007652207,16.2610414,195.92,195.89,0.1]
[1731007652404,15.6907823,195.91,195.89,0.1]
[1731007652619,16.2610414,195.92,195.89,0.1]
[1731007652836,16.2610414,195.92,195.87,0.1]
[1731007652837,0.5702591,195.92,195.91,0.1]
[1731007653813,0.5702591,195.92,195.9,0.1]
[1731007654014,0.5702591,195.92,195.91,0.1]
[1731007654529,0.5702591,195.92,195.9,0.1]
[1731007654731,0.5702591,195.92,195.91,0.1]
[1731007654909,16.2610414,195.92,195.87,0.1]
[1731007655107,15.6907823,195.9,195.87,0.2]
[1731007655419,0.5702591,195.92,195.87,0.2]
[1731007655420,25.55170844,195.92,195.9,0.1]
[1731007655813,0.5702591,195.92,195.91,0.1]
[1731007656020,25.55170844,195.92,195.87,0.1]
[1731007656407,0.5702591,195.92,195.91,0.1]
[1731007656611,0.5702591,195.92,195.9,0.1]
[1731007656911,0.5702591,195.92,195.91,0.1]
[1731007658010,0.5702591,195.92,195.9,0.2]
[1731007658415,0.5702591,195.92,195.89,0.1]
[1731007658736,0.5702591,195.92,195.82,0.1]
[1731007658737,24.98144934,195.9,195.82,0.1]
[1731007658935,24.98144934,195.83,195.76,25.18144934]
[1731007659117,24.98144934,195.82,195.77,0.1]
[1731007659445,23.902374,195.89,195.7,24.98144934]
[1731007659446,23.902374,195.89,195.8,0.1]
[1731007659611,23.902374,195.89,195.78,0.1]
[1731007659816,24.98144934,195.83,195.78,0.2]
[1731007660025,23.902374,195.89,195.68,8.68336781]
[1731007660026,24.98144934,195.8,195.77,0.1]
[1731007660222,24.98144934,195.82,195.77,0.2]
[1731007660538,24.98144934,195.82,195.8,0.1]
[1731007661044,24.98144934,195.85,195.82,0.1]
[1731007661226,24.98144934,195.87,195.84,0.1]
[1731007661610,24.98144934,195.88,195.85,0.2]
[1731007661848,24.98144934,195.88,195.81,24.98144934]
[1731007661849,24.98144934,195.88,195.86,0.1]
[1731007662135,24.98144934,195.87,195.85,0.1]
[1731007662517,24.98144934,195.87,195.86,0.1]
[1731007662739,24.98144934,195.87,195.85,0.1]
[1731007663219,24.98144934,195.87,195.83,0.1]
[1731007663415,24.98144934,195.87,195.84,0.1]
[1731007663927,24.98144934,195.87,195.82,0.2]
[1731007664321,24.98144934,195.87,195.83,0.1]
[1731007664520,24.98144934,195.87,195.83,0.2]
[1731007664955,24.98144934,195.84,195.82,0.1]
[1731007665127,24.98144934,195.83,195.82,0.1]
[1731007665438,24.98144934,195.83,195.79,0.1]
[1731007666312,24.98144934,195.83,195.8,0.1]
[1731007666518,24.98144934,195.83,195.8,0.2]
[1731007666712,24.98144934,195.83,195.81,0.1]
[1731007666940,24.98144934,195.83,195.8,0.1]
[1731007667925,24.98144934,195.84,195.82,0.1]
[1731007668126,24.98144934,195.83,195.8,0.1]
[1731007668840,24.98144934,195.83,195.8,0.2]
[1731007669243,24.98144934,195.83,195.81,0.1]
[1731007669545,24.98144934,195.82,195.8,0.1]
[1731007669731,24.98144934,195.83,195.8,0.1]
[1731007669925,24.98144934,195.83,195.8,0.2]
[1731007670242,24.98144934,195.86,195.83,0.1]
[1731007670447,24.98144934,195.85,195.83,0.1]
[1731007670640,0.12549,195.89,195.8,0.1]
[1731007670641,24.98144934,195.84,195.8,0.1]
[1731007670826,24.98144934,195.83,195.8,0.2]
[1731007671145,24.98144934,195.84,195.82,0.1]
[1731007671441,24.98144934,195.84,195.8,0.1]
[1731007671624,24.98144934,195.85,195.83,0.1]
[1731007671826,24.98144934,195.84,195.8,0.2]
[1731007672243,24.98144934,195.83,195.8,0.1]
[1731007672432,24.98144934,195.82,195.8,0.1]
[1731007672742,24.98144934,195.81,195.79,0.1]
[1731007672944,24.98144934,195.82,195.79,0.1]
[1731007673121,24.98144934,195.82,195.77,0.2]
[1731007673318,24.98144934,195.82,195.79,0.1]
[1731007673534,24.98144934,195.81,195.79,0.1]
[1731007673936,24.98144934,195.82,195.8,0.1]
[1731007674145,24.98144934,195.82,195.79,0.1]
[1731007674329,24.98144934,195.81,195.79,0.1]
[1731007674526,24.98144934,195.81,195.75,24.98144934]
[1731007674527,24.98144934,195.8,195.75,0.1]
[1731007674724,24.98144934,195.77,195.73,0.2]
[1731007674956,24.98144934,195.81,195.79,0.1]
[1731007675252,24.98144934,195.82,195.78,0.1]
[1731007675446,24.98144934,195.82,195.79,0.1]
[1731007675649,24.98144934,195.85,195.82,0.1]
[1731007676326,24.98144934,195.86,195.81,0.1]
[1731007676634,24.98144934,195.85,195.82,0.1]
[1731007677041,24.98144934,195.84,195.82,0.1]
[1731007677348,24.98144934,195.84,195.8,0.2]
[1731007677655,24.98144934,195.84,195.81,0.1]
[1731007677947,24.98144934,195.84,195.8,0.2]
[1731007678166,24.98144934,195.83,195.78,0.1]
[1731007678446,24.98144934,195.82,195.78,0.1]
[1731007679022,24.98144934,195.83,195.79,0.1]
[1731007680039,24.98144934,195.84,195.81,0.1]
[1731007680250,24.98144934,195.84,195.79,0.2]
[1731007680453,24.98144934,195.84,195.8,0.1]
[1731007680630,24.98144934,195.85,195.8,0.1]
[1731007680828,24.98144934,195.85,195.79,0.1]
[1731007681130,24.98144934,195.85,195.8,0.1]
[1731007681335,24.98144934,195.85,195.82,0.1]
[1731007682050,24.98144934,195.84,195.79,0.1]
[1731007682253,24.98144934,195.83,195.79,0.2]
[1731007682555,1.45755289,195.89,195.8,0.1]
[1731007682556,24.98144934,195.84,195.8,0.1]
[1731007682852,24.98144934,195.83,195.76,25.08144934]
[1731007683152,24.98144934,195.78,195.72,0.2]
[1731007683453,1.45755289,195.89,195.72,0.1]
[1731007683454,15.63731925,195.76,195.72,0.1]
[1731007683827,15.63731925,195.77,195.73,0.1]
[1731007684030,23.776884,195.88,195.77,0.1]
[1731007684263,15.63731925,195.8,195.77,0.1]
[1731007684462,15.63731925,195.82,195.77,0.1]
[1731007684757,15.63731925,195.82,195.75,0.1]
[1731007684758,1.33206289,195.89,195.83,0.2]
[1731007684946,5.30552794,195.91,195.83,0.2]
[1731007685152,0.12549,195.9,195.84,0.1]
[1731007685447,0.12549,195.9,195.83,0.2]
[1731007685949,15.63731925,195.84,195.79,0.1]
[1731007686160,15.63731925,195.82,195.76,0.2]
[1731007686333,15.63731925,195.82,195.78,0.1]
[1731007686656,15.63731925,195.82,195.78,0.2]
[1731007686846,15.63731925,195.82,195.79,0.1]
[1731007687151,15.63731925,195.81,195.76,0.2]
[1731007687345,15.63731925,195.81,195.79,0.1]
[1731007687742,5.30528405,195.88,195.75,0.1]
[1731007687743,15.63731925,195.8,195.75,0.1]
[1731007687945,15.63731925,195.78,195.74,0.2]
[1731007688148,15.63731925,195.78,195.74,0.1]
[1731007688337,15.63731925,195.77,195.73,0.2]
[1731007688534,15.63731925,195.79,195.75,0.1]
[1731007689049,15.63731925,195.79,195.77,0.2]
[1731007689247,15.63731925,195.81,195.78,0.2]
[1731007689444,15.63731925,195.82,195.79,0.1]
[1731007689651,5.30528405,195.88,195.83,0.1]
[1731007689844,6.0249174,195.87,195.84,0.2]
[1731007690031,15.63731925,195.88,195.84,0.2]
[1731007690359,6.83353582,195.92,195.84,0.2]
[1731007690360,6.03065042,195.87,195.84,0.2]
[1731007690533,6.03065042,195.86,195.84,0.2]
[1731007690737,6.03065042,195.86,195.85,0.2]
[1731007691334,6.03065042,195.86,195.85,25.18685463]
[1731007691656,5.87629248,195.92,195.9,0.1]
[1731007691873,6.04082312,195.91,195.9,0.1]
[1731007692151,33.5772044,195.91,195.85,0.2]
[1731007692330,24.98685463,195.86,195.85,0.1]
[1731007692533,33.5775987,195.86,195.85,0.1]
[1731007694053,8.59074407,195.86,195.85,0.1]
[1731007694551,6.04082312,195.86,195.85,0.2]
[1731007695149,8.59074407,195.86,195.85,0.2]
[1731007695549,14.89152809,195.86,195.85,0.2]
[1731007696127,8.59074407,195.86,195.85,0.2]
[1731007697540,6.04082312,195.86,195.85,0.2]
[1731007697765,6.04082312,195.86,195.85,0.1]
[1731007697950,8.59074407,195.86,195.85,0.2]
[1731007698350,6.051049,195.86,195.85,0.2]
[1731007698548,11.15081006,195.86,195.85,0.2]
[1731007698752,14.17656423,195.86,195.85,0.2]
[1731007698961,36.6135631,195.86,195.85,0.1]
[1731007699258,14.17656423,195.86,195.85,0.1]
[1731007699449,14.17656423,195.86,195.85,0.2]
[1731007699645,11.62670847,195.86,195.85,0.2]
[1731007699859,14.17656423,195.86,195.85,0.2]
[1731007700238,11.62670847,195.86,195.85,0.2]
[1731007700960,14.17656423,195.86,195.85,0.2]
[1731007701258,5.57560972,195.86,195.85,0.2]
[1731007701553,3.02575417,195.86,195.85,25.18685463]
[1731007701945,3.02597372,195.86,195.85,25.18685463]
[1731007703441,3.02597372,195.86,195.85,48.96373863]
[1731007705368,3.02597372,195.86,195.85,23.976884]
[1731007705557,3.02597372,195.86,195.85,0.2]
[1731007706554,3.02597372,195.86,195.85,45.18685463]
[1731007707448,3.02597372,195.86,195.85,68.96373863]
[1731007707653,3.02597372,195.86,195.85,20.2]
[1731007707849,3.02597372,195.86,195.85,0.2]
[1731007708067,3.02597372,195.86,195.85,68.96373863]
[1731007708748,3.02597372,195.86,195.85,43.976884]
[1731007708948,3.02597372,195.86,195.85,20.2]
[1731007709455,3.02597372,195.86,195.85,0.2]
[1731007710954,6.81049703,195.86,195.85,0.2]
[1731007711166,3.02597372,195.86,195.85,0.2]
[1731007711751,3.02597372,195.86,195.85,15.81409229]
[1731007712175,3.02597372,195.86,195.85,59.59097629]
[1731007712952,0.5702591,195.92,195.91,0.2]
[1731007713146,7.38301076,195.92,195.91,0.2]
[1731007715377,7.38301076,195.92,195.91,0.1]
[1731007715563,22.99710305,195.92,195.91,0.1]
[1731007715874,7.3797673,195.92,195.91,0.2]
[1731007717450,7.3797673,195.92,195.91,0.1]
[1731007717653,22.99385959,195.92,195.9,0.1]
[1731007717854,22.42360049,195.91,195.88,0.2]
[1731007718062,3.02782799,195.9,195.89,0.2]
[1731007719161,0.5702591,195.92,195.89,0.2]
[1731007719358,3.0239847,195.9,195.89,0.1]
[1731007719582,3.0239847,195.91,195.9,0.1]
[1731007719765,3.0239847,195.91,195.9,0.2]
[1731007720073,6.80334325,195.91,195.9,0.2]
[1731007720276,3.02370036,195.91,195.9,0.2]
[1731007721269,3.02370036,195.91,195.9,15.81409229]
[1731007721460,3.02370036,195.91,195.9,0.2]
[1731007722584,0.5702591,195.92,195.9,0.2]
[1731007722767,3.02464073,195.91,195.9,0.2]
[1731007724472,0.5702591,195.92,195.89,43.776884]
[1731007724473,0.5702591,195.92,195.91,0.2]
[1731007725673,3.59472179,195.92,195.91,0.2]